fUSD/lending_fUSD_20260630
["ID","MTS","AMOUNT","RATE_DAILY","PERIOD"]
[426776223,1782816645000,-151.0,0.00019243,2]
[426776224,1782816645000,-151.0,0.00019243,2]
[426776226,1782816645000,-151.0,0.00019243,2]
[426776225,1782816645000,-151.0,0.00019243,2]
[426776222,1782816645000,-151.0,0.00019243,2]
[426776227,1782816645000,-151.0,0.00019243,2]
[426776261,1782816645000,-184.05222055,0.0002,2]
[426776228,1782816645000,-151.0,0.00019243,2]
[426776239,1782816645000,-485.415439,0.00019452,2]
[426776238,1782816645000,-471.0,0.00019452,2]
[426776231,1782816645000,-151.0,0.00019243,2]
[426776235,1782816645000,-151.0,0.00019243,2]
[426776234,1782816645000,-151.0,0.00019243,2]
[426776236,1782816645000,-151.0,0.00019243,2]
[426776237,1782816645000,-35228.67779209,0.00019291,2]
[426776230,1782816645000,-151.0,0.00019243,2]
[426776233,1782816645000,-151.0,0.00019243,2]
[426776240,1782816645000,-658.0,0.00019452,2]
[426776232,1782816645000,-151.0,0.00019243,2]
[426776264,1782816645000,-150.0,0.0002,2]
[426776254,1782816645000,-200.0,0.0002,2]
[426776265,1782816645000,-169.13859984,0.0002,2]
[426776288,1782816645000,-319.0,0.0002,2]
[426776286,1782816645000,-255.53332048,0.0002,2]
[426776289,1782816645000,-200.0,0.0002,10]
[426776293,1782816645000,-498.7221918,0.0002,2]
[426776294,1782816645000,-200.0,0.0002,2]
[426776296,1782816645000,-251.0,0.0002,2]
[426776295,1782816645000,-281.0,0.0002,2]
[426776299,1782816645000,-3690.5002049,0.00020065,2]
[426776298,1782816645000,-502.0,0.00020006,5]
[426776303,1782816645000,-274.0,0.00020136,2]
[426776300,1782816645000,-300.0,0.000201,10]
[426776302,1782816645000,-471.0,0.00020136,2]
[426776304,1782816645000,-631.3967021,0.000202,2]
[426776307,1782816645000,-631.3967021,0.000204,2]
[426776308,1782816645000,-675.14,0.00020425,2]
[426776305,1782816645000,-500.0,0.00020247,2]
[426776306,1782816645000,-3690.5002049,0.00020339,2]
[426776309,1782816645000,-707.3252772,0.00020484,2]
[426776267,1782816645000,-1074.79929104,0.0002,2]
[426776291,1782816645000,-5708.0,0.0002,2]
[426776292,1782816645000,-964.0,0.0002,2]
[426776297,1782816645000,-1788.32,0.0002,2]
[426776287,1782816645000,-161.61468301,0.0002,2]
[426776271,1782816645000,-7955.31906061,0.0002,2]
[426776290,1782816645000,-849.0,0.0002,2]
[426776268,1782816645000,-1319.12674086,0.0002,2]
[426776272,1782816645000,-2001.8653,0.0002,2]
[426776270,1782816645000,-541.54136266,0.0002,2]
[426776269,1782816645000,-3007.65481356,0.0002,7]
[426776273,1782816645000,-10007.8093,0.0002,2]
[426776266,1782816645000,-634.49767965,0.0002,2]
[426776285,1782816645000,-366.65,0.0002,2]
[426776275,1782816645000,-15929.06566017,0.0002,5]
[426776274,1782816645000,-354.0,0.0002,2]
[426776281,1782816645000,-1017.0,0.0002,2]
[426776284,1782816645000,-361.0,0.0002,2]
[426776278,1782816645000,-2110.0,0.0002,2]
[426776276,1782816645000,-2002.9416,0.0002,2]
[426776277,1782816645000,-10011.824,0.0002,2]
[426776280,1782816645000,-183.0,0.0002,2]
[426776279,1782816645000,-164.0,0.0002,2]
[426776283,1782816645000,-168.0,0.0002,2]
[426776282,1782816645000,-631.3967021,0.0002,2]
[426776341,1782816646000,-500.0,0.00020952,2]
[426776336,1782816646000,-165.98506152,0.00020832,2]
[426776343,1782816646000,-500.0,0.00020952,2]
[426776339,1782816646000,-2025.06,0.00020951,2]
[426776338,1782816646000,-3690.5002049,0.00020887,2]
[426776335,1782816646000,-631.3967021,0.000208,2]
[426776337,1782816646000,-2000.0,0.00020882,7]
[426776345,1782816646000,-483.11487047,0.00020952,2]
[426776342,1782816646000,-500.0,0.00020952,2]
[426776344,1782816646000,-500.0,0.00020952,2]
[426776349,1782816646000,-1068.94750694,0.00021,2]
[426776348,1782816646000,-15000.0,0.00021,2]
[426776352,1782816646000,-3160.80772297,0.00021,2]
[426776350,1782816646000,-5719.2005297,0.00021,2]
[426776353,1782816646000,-664.48433373,0.00021,2]
[426776351,1782816646000,-15000.0,0.00021,2]
[426776355,1782816646000,-400.0,0.00021,2]
[426776347,1782816646000,-7950.0,0.00020986,2]
[426776346,1782816646000,-150.0,0.00020952,2]
[426776360,1782816646000,-168.0,0.00021,2]
[426776340,1782816646000,-500.0,0.00020952,2]
[426776354,1782816646000,-1799.95,0.00021,2]
[426776330,1782816646000,-150.69544106,0.0002058,2]
[426776310,1782816646000,-2110.0,0.000205,2]
[426776329,1782816646000,-150.0,0.0002058,2]
[426776362,1782816646000,-15000.0,0.00021,2]
[426776314,1782816646000,-4678.2335,0.00020548,2]
[426776311,1782816646000,-700.5254,0.00020548,2]
[426776313,1782816646000,-4678.2335,0.00020548,2]
[426776312,1782816646000,-4678.2335,0.00020548,2]
[426776315,1782816646000,-4678.2335,0.00020548,2]
[426776320,1782816646000,-151.0,0.00020548,2]
[426776323,1782816646000,-314.95581412,0.00020548,7]
[426776318,1782816646000,-3282.0627,0.00020548,2]
[426776322,1782816646000,-9981.8,0.00020548,2]
[426776334,1782816646000,-502.0,0.00020785,6]
[426776317,1782816646000,-3282.0627,0.00020548,2]
[426776321,1782816646000,-151.000026,0.00020548,2]
[426776316,1782816646000,-4678.2335,0.00020548,2]
[426776324,1782816646000,-150.0,0.0002058,2]
[426776331,1782816646000,-631.3967021,0.000206,2]
[426776328,1782816646000,-150.0,0.0002058,2]
[426776327,1782816646000,-150.0,0.0002058,2]
[426776333,1782816646000,-533.44,0.00020645,2]
[426776325,1782816646000,-150.0,0.0002058,2]
[426776332,1782816646000,-3690.5002049,0.00020613,2]
[426776326,1782816646000,-150.0,0.0002058,2]
[426776319,1782816646000,-151.0,0.00020548,2]
[426776356,1782816646000,-164.0,0.00021,2]
[426776382,1782816646000,-151.0,0.00021519,2]
[426776365,1782816646000,-849.0,0.00021,2]
[426776381,1782816646000,-151.0,0.00021519,2]
[426776385,1782816646000,-3565.0,0.00021545,2]
[426776380,1782816646000,-656.22,0.000215,7]
[426776387,1782816646000,-1278.0,0.00021545,2]
[426776383,1782816646000,-151.15,0.00021525,2]
[426776411,1782816646000,-143515.2050096,0.00021775,2]
[426776401,1782816646000,-1041.62796235,0.000216,2]
[426776413,1782816646000,-5277.0250295,0.00021778,2]
[426776405,1782816646000,-150.0,0.00021675,2]
[426776419,1782816646000,-112456.4268271,0.00021778,2]
[426776384,1782816646000,-151.17,0.00021525,2]
[426776399,1782816646000,-502.0,0.00021564,6]
[426776421,1782816646000,-275.4661363,0.00021778,2]
[426776409,1782816646000,-3690.5002049,0.00021709,2]
[426776403,1782816646000,-150.0,0.00021675,2]
[426776407,1782816646000,-150.0,0.00021675,2]
[426776427,1782816646000,-108605.9830111,0.00021778,2]
[426776425,1782816646000,-5789.2143434,0.00021778,2]
[426776423,1782816646000,-25440.4400645,0.00021778,2]
[426776429,1782816646000,-561790.2824437,0.00021778,2]
[426776431,1782816646000,-211.6077938,0.000219,30]
[426776361,1782816646000,-361.0,0.00021,2]
[426776415,1782816646000,-11788.1414894,0.00021778,2]
[426776386,1782816646000,-1362.0,0.00021545,2]
[426776417,1782816646000,-7829.5458588,0.00021778,2]
[426776395,1782816646000,-216.0,0.00021545,2]
[426776358,1782816646000,-1017.0,0.00021,2]
[426776397,1782816646000,-1788.32,0.0002156,2]
[426776357,1782816646000,-183.0,0.00021,2]
[426776363,1782816646000,-1114.87666429,0.00021,2]
[426776364,1782816646000,-319.0,0.00021,2]
[426776359,1782816646000,-1041.62796235,0.00021,2]
[426776367,1782816646000,-281.0,0.00021,2]
[426776366,1782816646000,-964.0,0.00021,2]
[426776369,1782816646000,-251.0,0.00021,2]
[426776378,1782816646000,-226.63035794,0.000215,2]
[426776379,1782816646000,-56342.66305972,0.000215,2]
[426776371,1782816646000,-3690.5002049,0.00021161,2]
[426776368,1782816646000,-150.0,0.00021,2]
[426776370,1782816646000,-175.0,0.00021134,3]
[426776391,1782816646000,-150.0,0.00021545,2]
[426776389,1782816646000,-283.0,0.00021545,2]
[426776377,1782816646000,-3690.5002049,0.00021435,2]
[426776373,1782816646000,-1041.62796235,0.000212,2]
[426776393,1782816646000,-935.0,0.00021545,2]
[426776376,1782816646000,-1041.62796235,0.000214,2]
[426776374,1782816646000,-1314.51,0.00021273,2]
[426776372,1782816646000,-5780.62219631,0.00021174,2]
[426776375,1782816646000,-5490.07,0.0002137,2]
[426776482,1782816647000,-280.61,0.00022466,2]
[426776471,1782816647000,-573.43,0.00022341,2]
[426776469,1782816647000,-3690.5002049,0.00022257,2]
[426776474,1782816647000,-644.08,0.00022341,2]
[426776473,1782816647000,-151.0,0.00022341,2]
[426776475,1782816647000,-185.3,0.00022341,2]
[426776470,1782816647000,-1041.62796235,0.000223,2]
[426776472,1782816647000,-644.55,0.00022341,2]
[426776467,1782816647000,-512.0,0.00022251,2]
[426776468,1782816647000,-331.0,0.00022251,2]
[426776476,1782816647000,-151.0,0.00022341,2]
[426776477,1782816647000,-151.0,0.00022341,2]
[426776480,1782816647000,-301.46,0.00022466,2]
[426776485,1782816647000,-1371.92,0.00022466,2]
[426776488,1782816647000,-36253.59030025,0.000225,2]
[426776481,1782816647000,-498.79,0.00022466,2]
[426776487,1782816647000,-335.89,0.00022466,2]
[426776479,1782816647000,-707.3252772,0.00022367,2]
[426776478,1782816647000,-502.0,0.00022343,7]
[426776489,1782816647000,-322.93,0.000225,7]
[426776486,1782816647000,-2039.68,0.00022466,2]
[426776484,1782816647000,-1346.67,0.00022466,2]
[426776483,1782816647000,-1667.54,0.00022466,2]
[426776491,1782816647000,-3690.5002049,0.00022531,2]
[426776460,1782816647000,-964.0,0.00022,2]
[426776497,1782816647000,-285.0,0.00022997,2]
[426776490,1782816647000,-1041.62796235,0.000225,2]
[426776463,1782816647000,-251.0,0.00022,2]
[426776443,1782816647000,-245.94,0.00021918,2]
[426776456,1782816647000,-168.0,0.00022,2]
[426776494,1782816647000,-3690.5002049,0.00022805,2]
[426776442,1782816647000,-500.0,0.00021918,8]
[426776433,1782816647000,-1041.62796235,0.000219,2]
[426776435,1782816647000,-1011.89,0.00021918,2]
[426776439,1782816647000,-150.0,0.00021918,2]
[426776437,1782816647000,-5000.0,0.00021918,2]
[426776441,1782816647000,-500.0,0.00021918,8]
[426776453,1782816647000,-164.0,0.00022,2]
[426776448,1782816647000,-2216.53122663,0.00022,2]
[426776451,1782816647000,-30509.37757827,0.00022,4]
[426776446,1782816647000,-1997.67,0.00022,10]
[426776447,1782816647000,-3050.0,0.00022,10]
[426776462,1782816647000,-835.95,0.00022,2]
[426776455,1782816647000,-1017.0,0.00022,2]
[426776449,1782816647000,-300.0,0.00022,2]
[426776452,1782816647000,-217.186,0.00022,10]
[426776450,1782816647000,-1021.0,0.00022,2]
[426776454,1782816647000,-183.0,0.00022,2]
[426776444,1782816647000,-206.0,0.00021976,2]
[426776457,1782816647000,-361.0,0.00022,2]
[426776465,1782816647000,-245.30731069,0.0002211,2]
[426776466,1782816647000,-350.0,0.00022122,4]
[426776459,1782816647000,-849.0,0.00022,2]
[426776458,1782816647000,-319.0,0.00022,2]
[426776464,1782816647000,-1041.62796235,0.000221,2]
[426776461,1782816647000,-281.0,0.00022,2]
[426776445,1782816647000,-3690.5002049,0.00021983,2]
[426776496,1782816647000,-4394.0,0.00022882,2]
[426776508,1782816647000,-281.0,0.00023,2]
[426776501,1782816647000,-1017.0,0.00023,2]
[426776534,1782816647000,-150.0,0.00023203,7]
[426776525,1782816647000,-150.0,0.00023203,7]
[426776535,1782816647000,-150.0,0.00023203,7]
[426776533,1782816647000,-151.22158445,0.00023203,7]
[426776536,1782816647000,-150.0,0.00023233,7]
[426776527,1782816647000,-150.0,0.00023203,7]
[426776529,1782816647000,-150.0,0.00023203,7]
[426776528,1782816647000,-150.0,0.00023203,7]
[426776537,1782816647000,-150.0,0.00023263,7]
[426776532,1782816647000,-150.74193865,0.00023203,7]
[426776540,1782816647000,-150.0,0.00023288,2]
[426776539,1782816647000,-150.0,0.00023288,2]
[426776526,1782816647000,-150.0,0.00023203,7]
[426776550,1782816647000,-265.31239669,0.00023299,2]
[426776541,1782816647000,-150.0,0.00023288,2]
[426776543,1782816647000,-150.0,0.00023288,2]
[426776545,1782816647000,-150.0,0.00023288,2]
[426776542,1782816647000,-150.0,0.00023288,2]
[426776546,1782816647000,-150.0,0.00023288,2]
[426776547,1782816647000,-162.65152449,0.00023288,2]
[426776549,1782816647000,-150.0,0.00023294,7]
[426776544,1782816647000,-150.0,0.00023288,2]
[426776551,1782816647000,-150.0,0.0002332,7]
[426776554,1782816647000,-3690.5002049,0.00023353,2]
[426776553,1782816647000,-150.0,0.00023326,7]
[426776495,1782816647000,-323.48921694,0.00022845,2]
[426776548,1782816647000,-150.0,0.00023289,7]
[426776531,1782816647000,-150.0,0.00023203,7]
[426776538,1782816647000,-150.0,0.00023288,2]
[426776522,1782816647000,-150.0,0.00023203,7]
[426776492,1782816647000,-1041.62796235,0.000227,2]
[426776530,1782816647000,-150.0,0.00023203,7]
[426776500,1782816647000,-183.0,0.00023,2]
[426776498,1782816647000,-787.0,0.00023,2]
[426776493,1782816647000,-534.48686123,0.0002271,2]
[426776499,1782816647000,-164.0,0.00023,2]
[426776513,1782816647000,-1788.32,0.00023121,7]
[426776503,1782816647000,-168.0,0.00023,2]
[426776506,1782816647000,-849.0,0.00023,2]
[426776505,1782816647000,-319.0,0.00023,2]
[426776504,1782816647000,-361.0,0.00023,2]
[426776507,1782816647000,-964.0,0.00023,2]
[426776509,1782816647000,-251.0,0.00023,2]
[426776552,1782816647000,-150.0,0.00023324,7]
[426776502,1782816647000,-1041.62796235,0.00023,2]
[426776519,1782816647000,-150.0,0.00023144,2]
[426776523,1782816647000,-150.0,0.00023203,7]
[426776511,1782816647000,-3690.5002049,0.00023079,2]
[426776521,1782816647000,-508.87760026,0.000232,2]
[426776524,1782816647000,-150.0,0.00023203,7]
[426776520,1782816647000,-482.64,0.00023162,2]
[426776518,1782816647000,-489.31449834,0.00023144,2]
[426776517,1782816647000,-500.0,0.00023144,2]
[426776516,1782816647000,-497.0,0.00023141,2]
[426776514,1782816647000,-502.0,0.00023122,8]
[426776512,1782816647000,-322.93,0.000231,7]
[426776510,1782816647000,-150.0,0.00023014,2]
[426776515,1782816647000,-769.0,0.00023141,2]
[426776594,1782816648000,-159.13759147,0.00023535,2]
[426776596,1782816648000,-150.0,0.00023536,7]
[426776599,1782816648000,-150.0,0.00023546,7]
[426776604,1782816648000,-155.89218413,0.00023549,2]
[426776593,1782816648000,-183.38008072,0.00023535,2]
[426776586,1782816648000,-168.42986388,0.0002353,2]
[426776600,1782816648000,-161.77233339,0.00023549,2]
[426776592,1782816648000,-176.96158864,0.00023535,2]
[426776590,1782816648000,-166.65227829,0.00023535,2]
[426776583,1782816648000,-153.53565365,0.0002353,2]
[426776603,1782816648000,-190.64939074,0.00023549,2]
[426776598,1782816648000,-150.0,0.00023546,7]
[426776602,1782816648000,-184.11696636,0.00023549,2]
[426776612,1782816648000,-152.11261506,0.00023549,2]
[426776595,1782816648000,-162.22913665,0.00023535,2]
[426776597,1782816648000,-150.0,0.00023546,7]
[426776591,1782816648000,-159.09974876,0.00023535,2]
[426776615,1782816648000,-181.15362532,0.00023549,2]
[426776608,1782816648000,-152.30106848,0.00023549,2]
[426776614,1782816648000,-155.98080469,0.00023549,2]
[426776616,1782816648000,-150.0,0.00023554,7]
[426776606,1782816648000,-150.83938159,0.00023549,2]
[426776609,1782816648000,-157.86234984,0.00023549,2]
[426776607,1782816648000,-176.58271317,0.00023549,2]
[426776605,1782816648000,-152.85187733,0.00023549,2]
[426776610,1782816648000,-151.93909538,0.00023549,2]
[426776588,1782816648000,-155.25655052,0.00023533,2]
[426776601,1782816648000,-208.33961752,0.00023549,2]
[426776587,1782816648000,-167.12784806,0.0002353,2]
[426776557,1782816648000,-150.0,0.00023375,7]
[426776589,1782816648000,-158.89625346,0.00023535,2]
[426776558,1782816648000,-150.0,0.00023375,7]
[426776563,1782816648000,-1025.62,0.00023429,2]
[426776562,1782816648000,-150.0,0.00023415,7]
[426776555,1782816648000,-150.0,0.00023354,7]
[426776559,1782816648000,-150.0,0.00023385,7]
[426776556,1782816648000,-150.0,0.00023375,7]
[426776561,1782816648000,-188.69279607,0.00023411,60]
[426776560,1782816648000,-322.93,0.000234,7]
[426776564,1782816648000,-150.0,0.00023437,7]
[426776566,1782816648000,-150.0,0.00023445,7]
[426776567,1782816648000,-150.0,0.00023448,7]
[426776570,1782816648000,-2211.70864437,0.000235,2]
[426776572,1782816648000,-151.82222219,0.00023525,2]
[426776584,1782816648000,-177.36377919,0.0002353,2]
[426776573,1782816648000,-150.0,0.00023525,7]
[426776571,1782816648000,-150.0,0.00023506,7]
[426776575,1782816648000,-179.74107932,0.00023525,2]
[426776565,1782816648000,-5780.62219631,0.00023437,2]
[426776576,1782816648000,-152.33572448,0.00023527,2]
[426776574,1782816648000,-155.76730362,0.00023525,2]
[426776569,1782816648000,-150.0,0.00023476,7]
[426776577,1782816648000,-174.05021282,0.00023527,2]
[426776580,1782816648000,-156.59282731,0.0002353,2]
[426776585,1782816648000,-178.55455697,0.0002353,2]
[426776582,1782816648000,-193.04582948,0.0002353,2]
[426776579,1782816648000,-185.87586395,0.0002353,2]
[426776578,1782816648000,-180.17360179,0.00023527,2]
[426776581,1782816648000,-173.09347749,0.0002353,2]
[426776568,1782816648000,-150.0,0.00023461,7]
[426776613,1782816648000,-188.43877881,0.00023549,2]
[426776611,1782816648000,-153.60585796,0.00023549,2]
[426776617,1782816648000,-150.0,0.00023567,7]
[426776646,1782816648000,-150.0,0.00023847,7]
[426776648,1782816648000,-150.0,0.0002387,7]
[426776654,1782816648000,-502.0,0.00023902,9]
[426776655,1782816648000,-150.0,0.00023906,7]
[426776658,1782816648000,-150.0,0.00023939,7]
[426776664,1782816648000,-482.64,0.00023985,2]
[426776657,1782816648000,-150.0,0.00023939,7]
[426776659,1782816648000,-150.0,0.00023961,7]
[426776653,1782816648000,-3690.5002049,0.00023901,2]
[426776661,1782816648000,-482.06,0.00023984,2]
[426776663,1782816648000,-482.64,0.00023985,2]
[426776660,1782816648000,-150.0,0.00023976,7]
[426776662,1782816648000,-482.63,0.00023984,2]
[426776644,1782816648000,-150.0,0.00023817,7]
[426776656,1782816648000,-150.0,0.00023931,7]
[426776665,1782816648000,-151.81,0.00023985,2]
[426776671,1782816648000,-1263.03551726,0.00024,2]
[426776667,1782816648000,-1128.99999999,0.00023987,2]
[426776670,1782816648000,-3600.0,0.00024,2]
[426776675,1782816648000,-175.80199786,0.00024,2]
[426776676,1782816648000,-197.82402055,0.00024,2]
[426776666,1782816648000,-396.24,0.00023985,2]
[426776668,1782816648000,-151.0,0.00023988,2]
[426776669,1782816648000,-150.0,0.00023991,7]
[426776672,1782816648000,-11218.7368757,0.00024,2]
[426776673,1782816648000,-1074.6003254,0.00024,7]
[426776678,1782816648000,-172.68908111,0.00024,2]
[426776621,1782816648000,-159.00181351,0.00023568,2]
[426776674,1782816648000,-789.85914569,0.00024,2]
[426776647,1782816648000,-150.0,0.00023847,7]
[426776677,1782816648000,-1031.49329255,0.00024,2]
[426776645,1782816648000,-150.0,0.0002384,7]
[426776623,1782816648000,-150.0,0.00023571,7]
[426776628,1782816648000,-3690.5002049,0.00023627,2]
[426776622,1782816648000,-180.40994296,0.00023568,2]
[426776625,1782816648000,-174.52773494,0.00023578,2]
[426776619,1782816648000,-188.02941907,0.00023568,2]
[426776626,1782816648000,-187.92638767,0.00023578,2]
[426776624,1782816648000,-150.0,0.00023571,7]
[426776643,1782816648000,-150.0,0.00023809,7]
[426776618,1782816648000,-4394.0,0.00023567,2]
[426776620,1782816648000,-203.20676239,0.00023568,2]
[426776630,1782816648000,-150.0,0.00023632,7]
[426776629,1782816648000,-150.0,0.00023627,7]
[426776631,1782816648000,-150.0,0.00023658,7]
[426776632,1782816648000,-150.0,0.00023671,7]
[426776627,1782816648000,-150.0,0.00023597,7]
[426776637,1782816648000,-150.0,0.00023718,7]
[426776633,1782816648000,-150.0,0.00023688,7]
[426776642,1782816648000,-150.0,0.00023804,7]
[426776652,1782816648000,-150.0,0.000239,7]
[426776650,1782816648000,-150.0,0.0002389,7]
[426776641,1782816648000,-150.0,0.00023789,7]
[426776649,1782816648000,-150.0,0.0002389,7]
[426776651,1782816648000,-150.0,0.0002389,7]
[426776636,1782816648000,-150.0,0.00023718,7]
[426776638,1782816648000,-150.0,0.00023718,7]
[426776639,1782816648000,-150.0,0.00023749,7]
[426776635,1782816648000,-150.0,0.00023718,7]
[426776634,1782816648000,-150.0,0.00023694,7]
[426776640,1782816648000,-150.0,0.00023779,7]
[426776717,1782816649000,-1025.0,0.00024253,2]
[426776719,1782816649000,-150.0,0.00024257,7]
[426776713,1782816649000,-150.0,0.00024234,7]
[426776721,1782816649000,-150.0,0.00024295,7]
[426776718,1782816649000,-663.0,0.00024253,2]
[426776714,1782816649000,-150.0,0.00024234,7]
[426776715,1782816649000,-707.3252772,0.00024251,2]
[426776720,1782816649000,-150.0,0.00024264,7]
[426776723,1782816649000,-150.0,0.00024308,7]
[426776716,1782816649000,-4394.02,0.00024252,2]
[426776712,1782816649000,-150.0,0.00024234,7]
[426776722,1782816649000,-150.0,0.00024308,7]
[426776735,1782816649000,-150.0,0.00024446,7]
[426776747,1782816649000,-1362.0,0.00024545,2]
[426776732,1782816649000,-150.0,0.00024416,7]
[426776725,1782816649000,-150.0,0.00024325,7]
[426776736,1782816649000,-3690.50020505,0.00024449,2]
[426776731,1782816649000,-150.0,0.00024406,7]
[426776726,1782816649000,-150.0,0.00024355,7]
[426776730,1782816649000,-150.0,0.00024406,7]
[426776724,1782816649000,-150.0,0.0002432,7]
[426776728,1782816649000,-150.0,0.00024386,7]
[426776727,1782816649000,-150.0,0.00024375,7]
[426776734,1782816649000,-150.0,0.0002443,7]
[426776729,1782816649000,-150.0,0.00024406,7]
[426776750,1782816649000,-935.0,0.00024545,2]
[426776709,1782816649000,-150.0,0.00024204,7]
[426776733,1782816649000,-350.0,0.0002443,5]
[426776704,1782816649000,-150.0,0.00024164,2]
[426776698,1782816649000,-293.9,0.0002411,2]
[426776705,1782816649000,-150.0,0.0002417,7]
[426776680,1782816649000,-326.95257769,0.00024,2]
[426776688,1782816649000,-150.0,0.00024023,7]
[426776679,1782816649000,-364.96323966,0.00024,2]
[426776683,1782816649000,-299.74102593,0.00024,2]
[426776682,1782816649000,-975.3996571,0.00024,2]
[426776681,1782816649000,-854.67377339,0.00024,2]
[426776686,1782816649000,-381.49628613,0.0002401,2]
[426776684,1782816649000,-161.14240609,0.00024,2]
[426776685,1782816649000,-254.85478866,0.00024,2]
[426776687,1782816649000,-150.0,0.00024022,7]
[426776697,1782816649000,-245.53,0.0002411,2]
[426776690,1782816649000,-150.0,0.00024062,7]
[426776694,1782816649000,-150.0,0.00024062,7]
[426776700,1782816649000,-1025.62,0.00024114,2]
[426776739,1782816649000,-150.0,0.00024492,7]
[426776691,1782816649000,-150.0,0.00024062,7]
[426776699,1782816649000,-150.0,0.00024113,7]
[426776695,1782816649000,-2000.0,0.00024068,7]
[426776692,1782816649000,-150.0,0.00024062,7]
[426776693,1782816649000,-150.0,0.00024062,7]
[426776702,1782816649000,-150.0,0.00024143,7]
[426776701,1782816649000,-150.0,0.0002414,7]
[426776703,1782816649000,-150.0,0.00024148,7]
[426776710,1782816649000,-165.77566792,0.00024212,2]
[426776708,1782816649000,-150.0,0.00024185,7]
[426776706,1782816649000,-150.0,0.00024173,7]
[426776711,1782816649000,-150.0,0.00024234,7]
[426776689,1782816649000,-150.0,0.00024052,7]
[426776745,1782816649000,-150.0,0.00024537,7]
[426776696,1782816649000,-150.0,0.00024082,7]
[426776740,1782816649000,-150.0,0.00024492,7]
[426776787,1782816649000,-1000.0,0.00024657,2]
[426776786,1782816649000,-1000.0,0.00024657,2]
[426776782,1782816649000,-1000.0,0.00024657,2]
[426776778,1782816649000,-1000.0,0.00024657,2]
[426776779,1782816649000,-1000.0,0.00024657,2]
[426776781,1782816649000,-1000.0,0.00024657,2]
[426776777,1782816649000,-1000.0,0.00024657,2]
[426776783,1782816649000,-1000.0,0.00024657,2]
[426776774,1782816649000,-1000.0,0.00024657,2]
[426776780,1782816649000,-1000.0,0.00024657,2]
[426776776,1782816649000,-1000.0,0.00024657,2]
[426776785,1782816649000,-1000.0,0.00024657,2]
[426776784,1782816649000,-1000.0,0.00024657,2]
[426776775,1782816649000,-1000.0,0.00024657,2]
[426776791,1782816649000,-1000.0,0.00024657,2]
[426776793,1782816649000,-1000.0,0.00024657,2]
[426776798,1782816649000,-1000.0,0.00024657,2]
[426776792,1782816649000,-1000.0,0.00024657,2]
[426776794,1782816649000,-1000.0,0.00024657,2]
[426776789,1782816649000,-1000.0,0.00024657,2]
[426776788,1782816649000,-1000.0,0.00024657,2]
[426776790,1782816649000,-1000.0,0.00024657,2]
[426776797,1782816649000,-1000.0,0.00024657,2]
[426776796,1782816649000,-1000.0,0.00024657,2]
[426776799,1782816649000,-1000.0,0.00024657,2]
[426776800,1782816649000,-1000.0,0.00024657,2]
[426776801,1782816649000,-1000.0,0.00024657,2]
[426776748,1782816649000,-1278.0,0.00024545,2]
[426776795,1782816649000,-1000.0,0.00024657,2]
[426776771,1782816649000,-1000.0,0.00024657,2]
[426776707,1782816649000,-3690.5002049,0.00024175,2]